bitfinex/quotes_SOLUSD_20220109
["timestamp","ask_amount","ask_price","bid_price","bid_amount"]
[1641742674029,1.786,139.95,139.88,21.0245]
[1641742675554,1.786,139.95,139.88,20.0245]
[1641742675955,25.5372592,139.96,139.88,20.0245]
[1641742677155,1.786,139.95,139.88,20.0245]
[1641742677356,0.25,139.94,139.88,20.0245]
[1641742677655,1.786,139.95,139.88,20.0245]
[1641742678959,1.786,139.95,139.88,10.3]
[1641742679858,0.25,139.94,139.85,23.3649]
[1641742680062,1.786,139.93,139.84,21.027]
[1641742680463,0.25,139.92,139.84,21.027]
[1641742680663,1.786,139.91,139.84,21.027]
[1641742680860,1.786,139.94,139.84,21.027]
[1641742681262,0.25,139.93,139.84,21.027]
[1641742681472,1.786,139.92,139.84,21.027]
[1641742682364,0.25,139.91,139.84,21.027]
[1641742682762,1.786,139.94,139.85,0.25]
[1641742682963,1.786,139.94,139.86,10.7259]
[1641742683163,120.1221,139.95,139.86,10.7259]
[1641742683366,0.25,139.93,139.86,10.7259]
[1641742683663,1.786,139.94,139.86,10.7259]
[1641742685365,0.25,139.93,139.86,10.7259]
[1641742685566,1.786,139.92,139.86,10.7259]
[1641742685867,0.25,139.91,139.86,10.7259]
[1641742686066,1.786,139.92,139.86,10.7259]
[1641742686272,1.786,139.94,139.84,21.0269]
[1641742686466,0.25,139.93,139.84,21.0269]
[1641742687968,1.786,139.92,139.84,21.0269]
[1641742688167,1.786,139.92,139.84,10.3]
[1641742688370,0.25,139.91,139.84,10.3]
[1641742688773,32.51139431,139.9,139.84,10.3]
[1641742689069,0.25,139.89,139.84,10.3]
[1641742690272,1.786,139.94,139.79,12.086]
[1641742690273,35.236872,139.88,139.79,12.086]
[1641742690472,2.036,139.87,139.79,1.786]
[1641742691072,1.786,139.87,139.79,12.5173]
[1641742691273,23.5939,139.93,139.79,12.5173]
[1641742691274,1.786,139.9,139.79,12.5173]
[1641742691471,1.786,139.9,139.8,0.25]
[1641742691673,1.786,139.92,139.8,3.25]
[1641742691876,1.786,139.92,139.8,3.0]
[1641742692073,30.26446226,139.91,139.79,1.786]
[1641742692275,1.786,139.9,139.78,10.3]
[1641742692874,0.25,139.89,139.79,0.25]
[1641742693073,1.786,139.88,139.81,10.7297]
[1641742693474,0.25,139.87,139.81,10.7297]
[1641742694398,0.25,139.88,139.81,10.7297]
[1641742694999,1.786,139.89,139.81,10.7297]
[1641742696399,0.25,139.88,139.81,10.7297]
[1641742696902,1.786,139.89,139.81,10.7297]
[1641742698398,1.786,139.89,139.84,10.7275]
[1641742698399,0.25,139.88,139.84,10.7275]
[1641742700000,1.786,139.9,139.84,10.7275]
[1641742700201,1.786,139.92,139.84,10.7275]
[1641742700401,0.25,139.91,139.84,10.7275]
[1641742702602,1.786,139.92,139.84,10.7275]
[1641742702603,1.786,139.92,139.85,0.25]
[1641742702806,22.6495,139.95,139.85,2.296]
[1641742703004,0.25,139.94,139.9,10.7229]
[1641742704206,0.25,139.96,139.9,10.7229]
[1641742704407,1.786,139.95,139.9,10.7229]
[1641742704609,1.786,139.97,139.9,10.7229]
[1641742705207,1.786,139.97,139.88,10.7241]
[1641742705408,11.430965,139.96,139.84,35.7493]
[1641742705710,1.786,139.95,139.88,0.25]
[1641742705907,1.786,139.97,139.85,13.3]
[1641742706509,1.786,139.97,139.86,0.25]
[1641742706708,1.786,139.97,139.86,10.55]
[1641742706909,0.25,139.96,139.9,10.7229]
[1641742707113,1.786,139.95,139.9,10.7229]
[1641742707310,0.25,139.96,139.9,10.7229]
[1641742707509,0.25,139.97,139.9,10.7229]
[1641742708910,1.786,139.96,139.9,10.7229]
[1641742710111,0.25,139.97,139.9,10.7229]
[1641742712217,1.786,139.98,139.91,0.25]
[1641742712444,0.25,139.97,139.93,10.7205]
[1641742713114,27.76733449,140.01,139.93,10.7205]
[1641742713115,1.786,140.0,139.93,10.7205]
[1641742713317,27.76733449,140.01,139.93,10.7205]
[1641742713515,13.217758,140.0,139.92,10.7215]
[1641742713719,1.786,140.0,139.9,10.3]
[1641742713917,1.786,140.0,139.89,97.512]
[1641742714116,3.56682586,140.0,139.89,97.512]
[1641742714319,0.25,139.99,139.89,73.726]
[1641742714518,1.786,139.98,139.89,73.726]
[1641742714918,0.25,139.97,139.89,73.726]
[1641742715117,1.786,139.96,139.89,73.726]
[1641742715418,0.25,139.95,139.89,73.726]
[1641742715618,1.786,139.96,139.89,73.726]
[1641742715818,0.25,139.97,139.89,73.726]
[1641742716018,0.25,139.97,139.89,84.4497]
[1641742716220,0.25,139.97,139.9,0.26]
[1641742716823,1.786,139.98,139.9,0.25]
[1641742717021,23.6413,139.99,139.9,2.296]
[1641742717223,0.25,139.98,139.9,2.296]
[1641742717420,23.6413,139.99,139.9,13.0187]
[1641742717621,128.04314357,140.06,139.9,13.0187]
[1641742717622,1.786,140.03,139.9,13.0187]
[1641742717821,1.786,140.03,139.91,4.78082586]
[1641742718020,107.97098961,140.04,139.92,12.346]
[1641742718221,107.97098961,140.04,139.92,14.37682586]
[1641742718422,107.97098961,140.04,139.93,3.0]
[1641742718625,101.8911,140.04,139.93,4.78082586]
[1641742718823,101.8911,140.04,139.94,0.51]
[1641742719223,0.25,140.03,139.94,0.51]
[1641742719425,1.784,140.02,139.94,0.51]
[1641742719625,1.784,140.02,139.96,10.7178]
[1641742719959,6.15951863,140.09,140.04,21.75397818]
[1641742720131,1.784,140.17,140.07,0.30986085]
[1641742720330,1.784,140.17,140.08,10.3]
[1641742720528,154.7113519,140.23,140.09,3.26]
[1641742720529,1.784,140.21,140.09,3.26]
[1641742720728,31.08833024,140.22,140.12,10.7048]
[1641742721130,3.50829411,140.15,140.13,3.0]
[1641742721329,1.784,140.22,140.13,13.3]
[1641742721628,1.782,140.25,140.13,13.3]
[1641742721830,1.782,140.28,140.14,36.1809]
[1641742722129,1.782,140.28,140.15,3.0]
[1641742722337,29.2335896,140.27,140.16,10.3]
[1641742722532,1.782,140.26,140.16,10.3]
[1641742722729,12.4866,140.26,140.16,10.3]
[1641742723335,1.782,140.26,140.16,10.3]
[1641742723936,1.782,140.29,140.17,0.25]
[1641742724136,1.782,140.29,140.18,10.3]
[1641742724536,1.782,140.29,140.19,3.25]
[1641742724736,27.29262315,140.28,140.18,10.3]
[1641742724936,94.7,140.24,140.18,10.3]
[1641742725139,1.782,140.23,140.14,10.3]
[1641742725336,23.17866886,140.22,140.14,10.3]
[1641742725535,1.782,140.21,140.14,10.3]
[1641742725736,23.17866886,140.22,140.14,10.3]
[1641742725937,0.25,140.21,140.14,10.3]
[1641742726741,1.782,140.23,140.14,21.0746]
[1641742726940,94.7,140.24,140.14,21.0746]
[1641742727142,1.782,140.23,140.15,0.25]
[1641742727342,94.7,140.24,140.16,12.082]
[1641742727762,94.7,140.24,140.19,10.7009]
[1641742727959,26.38211725,140.25,140.16,12.082]
[1641742728563,0.25,140.24,140.16,12.082]
[1641742728761,1.782,140.23,140.16,10.3]
[1641742728964,26.38211725,140.25,140.16,10.3]
[1641742729162,1.782,140.24,140.16,10.37]
[1641742729361,2.032,140.24,140.16,10.3]
[1641742729965,1.782,140.24,140.16,10.3]
[1641742730562,1.782,140.27,140.16,21.003]
[1641742730764,0.25,140.27,140.16,21.003]
[1641742730964,1.782,140.26,140.16,21.003]
[1641742731365,0.25,140.25,140.16,21.003]
[1641742731562,1.782,140.24,140.16,21.003]
[1641742732666,0.25,140.25,140.17,36.0]
[1641742732867,0.25,140.26,140.17,46.9518]
[1641742733065,0.25,140.26,140.17,10.9518]
[1641742736576,0.25,140.26,140.17,10.7018]
[1641742736779,0.25,140.26,140.16,10.3]
[1641742736979,1.782,140.25,140.16,10.3]
[1641742737377,0.25,140.24,140.16,10.3]
[1641742737577,1.782,140.23,140.16,10.3]
[1641742737779,0.25,140.24,140.16,10.3]
[1641742738881,0.25,140.26,140.16,10.3]
[1641742739081,1.782,140.25,140.16,10.3]
[1641742739481,1.782,140.25,140.16,21.0031]
[1641742739682,0.25,140.26,140.17,0.25]
[1641742740482,0.25,140.26,140.16,10.3]
[1641742740684,1.782,140.25,140.16,10.3]
[1641742740885,0.25,140.24,140.16,10.3]
[1641742741085,1.782,140.23,140.16,10.3]
[1641742741285,1.783,140.23,140.16,10.3]
[1641742741486,0.25,140.22,140.16,10.3]
[1641742743589,1.783,140.23,140.16,10.3]
[1641742743788,1.782,140.25,140.16,10.3]
[1641742743989,0.25,140.24,140.16,10.3]
[1641742744791,1.782,140.23,140.16,10.3]
[1641742744994,0.25,140.22,140.16,10.3]
[1641742745195,1.782,140.21,140.16,10.3]
[1641742745394,0.25,140.2,140.16,10.3]
[1641742746818,0.25,140.2,140.13,10.3]
[1641742747037,1.782,140.19,140.13,10.3]
[1641742747425,31.91434813,140.22,140.13,10.3]
[1641742747825,31.91434813,140.22,140.13,21.0053]
[1641742748924,0.25,140.21,140.13,21.0053]
[1641742749824,1.782,140.2,140.13,21.0053]
[1641742750527,8.01785309,140.19,140.13,21.0053]
[1641742751332,2.02341089,140.17,140.13,21.0053]
[1641742752531,2.02341089,140.17,140.14,0.25]
[1641742754133,2.02341089,140.17,140.14,10.9545]
[1641742754333,2.02341089,140.17,140.14,21.2545]
[1641742754533,3.97084353,140.2,140.15,1.782]
[1641742754933,3.97084353,140.2,140.16,0.25]
[1641742755132,3.97084353,140.2,140.18,10.701]
[1641742755532,3.97084353,140.23,140.18,10.701]
[1641742756933,3.97084353,140.23,140.19,0.25]
[1641742757233,3.97084353,140.23,140.21,10.699]
[1641742757462,3.97084353,140.23,140.18,10.3]
[1641742757638,3.97084353,140.24,140.18,10.3]
[1641742758236,0.25,140.23,140.18,10.3]
[1641742758438,1.782,140.22,140.18,10.3]
[1641742758636,3.97084353,140.24,140.18,10.3]
[1641742758937,3.97084353,140.24,140.18,21.0015]
[1641742759136,3.97084353,140.23,140.18,21.0015]
[1641742759738,3.97084353,140.24,140.18,21.0015]
[1641742760136,3.47084353,140.24,140.18,21.0015]
[1641742760537,3.47084353,140.24,140.21,10.6987]
[1641742761341,4.04521231,140.25,140.21,10.6987]
[1641742762240,4.04521231,140.27,140.21,10.6987]
[1641742762846,4.04521231,140.27,140.19,10.9504]
[1641742763042,9.239175,140.26,140.18,10.3]
[1641742763243,2.032,140.26,140.18,10.3]
[1641742763445,0.25,140.26,140.18,10.3]
[1641742763850,4.04521231,140.25,140.18,10.3]
[1641742764848,4.04521231,140.25,140.18,21.0016]
[1641742767780,38.0,140.24,140.18,10.2216]
[1641742767977,67.59278193,140.24,140.18,10.2216]
[1641742768177,0.25,140.23,140.16,10.7027]
[1641742768380,1.782,140.22,140.13,1.782]
[1641742768578,1.782,140.22,140.12,12.082]
[1641742769385,0.25,140.21,140.12,12.082]
[1641742769584,0.25,140.21,140.12,12.08082586]
[1641742769785,4.29242063,140.21,140.14,10.7042]
[1641742769983,1.782,140.2,140.12,10.3]
[1641742770584,0.25,140.19,140.12,10.3]
[1641742771185,31.98459215,140.18,140.1,1.782]
[1641742771384,2.032,140.17,140.1,1.782]
[1641742772593,2.032,140.17,140.09,10.7085]
[1641742773894,0.25,140.17,140.09,10.7085]
[1641742774290,0.25,140.18,140.09,12.48932586]
[1641742774489,0.25,140.18,140.12,10.7057]
[1641742774895,1.782,140.22,140.12,10.7057]
[1641742774896,0.25,140.21,140.12,10.7057]
[1641742775694,4.03774071,140.2,140.12,10.7057]
[1641742775893,0.25,140.19,140.12,10.7057]
[1641742777095,0.25,140.21,140.12,10.7057]
[1641742777297,33.39782278,140.22,140.12,10.7057]
[1641742777501,0.25,140.21,140.12,10.7057]
[1641742777697,4.03743042,140.2,140.12,10.7057]
[1641742777897,5.81943042,140.2,140.12,10.7057]
[1641742778098,1.782,140.2,140.12,10.7057]
[1641742778298,1.782,140.22,140.12,10.7057]
[1641742778499,29.56606905,140.22,140.12,10.7057]
[1641742778699,1.782,140.22,140.12,10.7057]
[1641742778899,1.782,140.22,140.13,0.51]
[1641742779101,1.782,140.25,140.13,2.292]
[1641742779302,4.03674946,140.21,140.13,81.274]
[1641742779501,4.03674946,140.21,140.13,2.292]
[1641742779801,4.03674946,140.21,140.14,10.3]
[1641742780004,4.03674946,140.25,140.15,0.26]
[1641742780203,4.03674946,140.25,140.17,10.7022]
[1641742780602,4.03674946,140.25,140.14,15.08082586]
[1641742780803,1.782,140.24,140.14,15.08082586]
[1641742781304,1.782,140.24,140.16,10.703]
[1641742781505,4.03674946,140.23,140.14,10.3]
[1641742781706,1.782,140.22,140.14,10.3]
[1641742782206,1.782,140.22,140.15,0.25]
[1641742782404,4.03674946,140.23,140.15,12.7356]
[1641742782707,1.782,140.25,140.15,12.7356]
[1641742782905,0.25,140.24,140.15,12.7356]
[1641742783308,4.28684544,140.24,140.15,12.4856]
[1641742783507,4.28684544,140.24,140.15,1.782]
[1641742783738,1.782,140.23,140.15,1.782]
[1641742783937,0.25,140.22,140.15,1.782]
[1641742784138,1.782,140.21,140.15,1.782]
[1641742784338,1.782,140.21,140.12,10.3]
[1641742784539,0.25,140.2,140.12,21.0062]
[1641742784739,1.782,140.21,140.12,21.0062]
[1641742784939,22.6209,140.23,140.13,1.782]
[1641742785138,1.782,140.22,140.12,10.3]
[1641742785441,22.6209,140.23,140.13,1.782]
[1641742785638,22.6209,140.23,140.12,10.3]
[1641742785639,0.25,140.21,140.12,10.3]
[1641742786238,1.782,140.22,140.13,0.25]
[1641742786441,22.6209,140.23,140.13,0.25]
[1641742786641,0.25,140.21,140.12,10.3]
[1641742786839,1.782,140.2,140.12,10.3]
[1641742787340,0.25,140.19,140.12,10.3]
[1641742787539,1.782,140.18,140.12,10.3]
[1641742787939,4.0382161,140.2,140.12,10.3]
[1641742788143,30.45829083,140.23,140.13,1.782]
[1641742788440,30.45829083,140.23,140.13,2.032]
[1641742788642,30.45829083,140.23,140.14,3.0]
[1641742788840,24.4029,140.23,140.14,3.0]
[1641742789241,0.25,140.22,140.13,2.032]
[1641742789442,1.782,140.23,140.13,0.25]
[1641742789641,1.782,140.24,140.14,3.0]
[1641742789842,6.05539083,140.26,140.15,1.782]
[1641742790042,23.1668,140.27,140.15,3.81282586]
[1641742790244,23.1668,140.27,140.15,3.56282586]
[1641742790245,1.782,140.26,140.15,3.56282586]
[1641742790443,31.42141976,140.25,140.14,24.84265204]
[1641742790645,1.782,140.24,140.15,0.25]
[1641742791442,0.25,140.23,140.15,0.25]
[1641742791642,4.28718048,140.23,140.15,0.25]
[1641742792043,0.25,140.23,140.15,3.25]
[1641742792844,0.25,140.23,140.15,13.9532]
[1641742795050,0.25,140.23,140.15,10.9532]
[1641742795449,0.25,140.23,140.16,3.0]
[1641742795850,0.25,140.23,140.15,10.9532]
[1641742796052,0.25,140.23,140.16,3.0]
[1641742796450,0.25,140.23,140.15,10.7032]
[1641742796652,1.782,140.22,140.12,1.782]
[1641742796951,0.25,140.21,140.09,10.3]
[1641742797151,1.782,140.2,140.09,10.3]
[1641742797454,0.25,140.19,140.09,10.3]
[1641742797650,1.782,140.2,140.09,10.3]
[1641742797651,1.782,140.18,140.09,12.08082586]
[1641742797851,1.782,140.2,140.12,10.7062]
[1641742798052,1.782,140.2,140.09,13.86282586]
[1641742798053,4.04028412,140.19,140.1,2.292]
[1641742798254,4.04028412,140.19,140.12,1.78082586]
[1641742798555,4.04028412,140.19,140.13,2.032]
[1641742798754,1.782,140.24,140.12,3.56282586]
[1641742798952,0.25,140.23,140.12,3.56282586]
[1641742799655,4.04047531,140.23,140.12,3.56282586]
[1641742799855,4.04047531,140.23,140.15,10.7037]
[1641742800259,5.82247531,140.24,140.15,10.7037]
[1641742800657,5.82247531,140.24,140.16,0.25]
[1641742800855,15.48026031,140.23,140.16,0.25]
[1641742801060,4.04047531,140.23,140.16,0.25]
[1641742802257,4.04047531,140.23,140.15,10.7037]
[1641742802563,2.032,140.22,140.13,10.7049]
[1641742802958,20.42813,140.21,140.13,10.7049]
[1641742803159,20.42813,140.21,140.11,1.782]
[1641742803359,2.032,140.2,140.1,10.3]
[1641742803565,29.54635887,140.19,140.09,22.9314]
[1641742803761,2.032,140.2,140.09,1.782]
[1641742803960,6.07352689,140.2,140.09,1.782]
[1641742804560,6.07352689,140.2,140.08,126.9957]
[1641742804759,4.04152689,140.19,140.11,10.7064]
[1641742804959,1.782,140.18,140.11,10.7064]
[1641742805162,1.782,140.18,140.08,91.3096]
[1641742805360,0.25,140.17,140.08,89.5276]
[1641742806764,1.782,140.18,140.08,100.2363]
[1641742806965,0.25,140.17,140.08,100.2363]
[1641742807167,0.25,140.17,140.08,10.3]
[1641742807168,22.667838,140.16,140.08,10.3]
[1641742807365,28.55620756,140.14,140.07,11.54265204]
[1641742807565,28.55620756,140.14,140.06,1.784]
[1641742807765,2.034,140.13,140.06,1.784]
[1641742807966,10.494,140.13,140.06,1.784]
[1641742809991,15.601842,140.12,140.04,21.75397818]
[1641742810191,1.784,140.11,140.04,21.75397818]
[1641742810391,8.988115,140.1,140.04,21.75397818]
[1641742810591,1.784,140.13,140.04,32.46627818]
[1641742810791,77.00590756,140.14,140.04,32.46627818]
[1641742810991,0.25,140.13,140.04,32.46627818]
[1641742811192,14.603012,140.12,140.04,32.46627818]
[1641742811396,13.224753,140.12,140.04,32.46627818]
[1641742811693,1.784,140.12,140.04,21.75397818]
[1641742811894,9.232341,140.11,140.04,21.75397818]
[1641742812093,26.472765,140.1,140.02,1.784]
[1641742812293,26.472765,140.1,140.0,1.78082586]
[1641742812294,12.084,140.1,140.0,1.78082586]
[1641742812498,10.3,140.1,140.01,1.784]
[1641742812694,10.3,140.1,140.04,10.7123]
[1641742812894,5.406424,140.09,140.04,10.7123]
[1641742813395,10.3,140.12,140.04,10.7123]
[1641742814095,10.3,140.12,140.05,3.25]
[1641742814396,10.3,140.12,140.05,13.9616]
[1641742814597,5.406424,140.11,140.05,13.9616]
[1641742814996,5.406424,140.1,140.05,13.9616]
[1641742815196,75.22190756,140.14,140.05,13.9616]
[1641742815397,0.25,140.13,140.05,13.9616]
[1641742817198,0.25,140.13,140.05,10.9616]
[1641742819201,46.6657,140.14,140.05,10.9616]
[1641742819401,136.67614899,140.2,140.05,10.9616]
[1641742819402,1.784,140.19,140.06,3.82482586]
[1641742819603,49.2406,140.2,140.11,10.707]
[1641742820004,5.486876,140.19,140.11,10.707]
[1641742820204,1.782,140.18,140.11,10.707]
[1641742821103,10.475692,140.17,140.1,10.7078]
[1641742821308,1.782,140.18,140.08,73.9566]
[1641742822703,1.782,140.18,140.08,84.6657]
[1641742823303,47.4566,140.2,140.09,13.56]
[1641742824002,47.4566,140.2,140.1,0.25]
[1641742824205,47.4566,140.2,140.14,10.7042]
[1641742824403,49.2386,140.2,140.1,25.13]
[1641742824603,49.2386,140.2,140.12,0.25]
[1641742824802,49.2386,140.2,140.1,35.43]
[1641742825004,49.2386,140.2,140.1,33.648]
[1641742825206,49.2386,140.2,140.13,10.7054]
[1641742825504,47.4566,140.2,140.13,10.7054]
[1641742825705,1.782,140.22,140.13,10.7054]
[1641742825906,1.782,140.24,140.14,0.25]
[1641742826107,1.782,140.24,140.15,10.3]
[1641742826909,1.782,140.24,140.18,10.7016]
[1641742827108,6.05539083,140.27,140.18,10.7016]
[1641742827109,1.782,140.26,140.18,10.7016]
[1641742827311,0.25,140.23,140.18,10.7016]
[1641742827511,1.782,140.24,140.18,10.7016]
[1641742827909,0.25,140.23,140.18,10.7016]
[1641742828108,0.25,140.23,140.16,10.7026]
[1641742830409,1.782,140.24,140.16,10.7026]
[1641742830609,1.782,140.25,140.16,10.7026]
[1641742830811,23.8045,140.26,140.16,10.7026]
[1641742831014,1.782,140.25,140.16,10.7026]
[1641742831912,0.25,140.24,140.17,0.25]
[1641742832114,0.25,140.24,140.17,10.9524]
[1641742832312,0.25,140.24,140.17,10.7024]
[1641742833014,1.782,140.25,140.17,10.7024]
[1641742834317,107.96069083,140.28,140.18,0.25]
[1641742834514,107.96069083,140.28,140.21,10.699]
[1641742834515,106.17869083,140.28,140.21,10.699]
[1641742834715,29.66409083,140.28,140.21,10.699]
[1641742834917,29.66409083,140.28,140.18,78.2877]
[1641742834918,4.02706783,140.27,140.18,78.2877]
[1641742835115,1.782,140.26,140.18,78.2877]
[1641742835314,30.6101467,140.27,140.18,78.2877]
[1641742835915,0.25,140.26,140.18,78.2877]
[1641742837119,1.782,140.25,140.18,88.7392]
[1641742837319,1.782,140.25,140.16,22.6968]
[1641742837518,0.25,140.24,140.15,10.3]
[1641742837718,1.782,140.23,140.12,10.3]
[1641742838219,1.782,140.25,140.12,10.3]
[1641742838419,25.9214,140.26,140.13,4.782]
[1641742838620,24.1394,140.26,140.13,15.082]
[1641742839019,24.1394,140.26,140.13,12.082]
[1641742839222,1.782,140.25,140.13,10.3]
[1641742839422,2.032,140.25,140.15,10.7033]
[1641742840119,6.0580799,140.25,140.15,10.7033]
[1641742840319,6.0580799,140.25,140.16,0.25]
[1641742840520,6.0580799,140.25,140.18,10.7012]
[1641742840922,2.032,140.25,140.18,10.7012]
[1641742843021,1.782,140.25,140.18,10.7012]
[1641742843924,24.1394,140.26,140.2,10.6997]
[1641742847226,0.25,140.25,140.18,10.7011]
[1641742847426,13.214766,140.24,140.18,10.7011]
[1641742847827,0.25,140.23,140.16,75.6646]
[1641742848627,0.25,140.23,140.16,1.782]
[1641742848829,1.782,140.22,140.14,10.7041]
[1641742849227,0.25,140.21,140.14,10.7041]
[1641742849428,4.25899553,140.21,140.14,10.7041]
[1641742849626,4.00899553,140.21,140.13,10.7048]
[1641742849828,4.00899553,140.21,140.12,87.7607]
[1641742850028,4.00899553,140.21,140.13,2.032]
[1641742850228,4.00899553,140.21,140.14,10.3]
[1641742850428,24.6521,140.24,140.15,2.032]
[1641742850629,24.6521,140.24,140.19,10.7001]
[1641742850828,31.36770679,140.26,140.19,10.7001]
[1641742851030,4.03905725,140.24,140.19,10.7001]
[1641742851271,1.782,140.23,140.19,10.7001]
[1641742851428,5.82105725,140.24,140.19,10.7001]
[1641742851629,4.03905725,140.24,140.19,10.7001]
[1641742851831,4.03905725,140.23,140.19,10.7001]
[1641742852031,4.28905725,140.23,140.19,10.7001]
[1641742852931,4.03905725,140.23,140.19,10.7001]
[1641742853532,0.25,140.22,140.17,10.7019]
[1641742854533,4.28905725,140.22,140.17,10.7019]
[1641742854734,4.03905725,140.22,140.17,10.7019]
[1641742855333,8.07616711,140.22,140.17,10.7019]
[1641742861754,8.07616711,140.22,140.15,10.7037]
[1641742862052,0.25,140.21,140.14,10.3]
[1641742862354,22.20537,140.2,140.12,79.2427]
[1641742862557,31.10744834,140.2,140.12,79.2427]
[1641742862754,31.10744834,140.2,140.12,1.782]
[1641742862957,17.390312,140.19,140.12,1.782]
[1641742863153,22.96136925,140.18,140.12,1.782]
[1641742863555,17.390312,140.17,140.12,1.782]
[1641742863854,0.25,140.17,140.12,1.782]
[1641742864054,0.25,140.17,140.1,10.7077]
[1641742864256,5.82105725,140.18,140.1,10.7077]
[1641742864655,15.72979925,140.17,140.08,85.6675]
[1641742865059,1.784,140.16,140.08,85.6675]
[1641742865457,0.25,140.15,140.09,3.0]
[1641742866872,0.25,140.15,140.08,85.6675]
[1641742867274,21.877564,140.14,140.08,10.3]
[1641742867474,33.3159,140.14,140.05,83.5762]
[1641742867677,1.784,140.15,140.05,83.5762]
[1641742867876,0.25,140.14,140.06,0.25]
[1641742869177,28.00225406,140.14,140.06,0.25]
[1641742869578,28.00225406,140.14,140.05,73.2762]
[1641742869778,1.784,140.13,140.03,45.2234]
[1641742870079,32.115511,140.12,140.03,45.2234]
[1641742870280,1.784,140.11,140.03,21.0125]
[1641742870479,13.224784,140.11,140.03,21.0125]
[1641742870678,0.25,140.1,140.03,21.0125]
[1641742870880,11.440784,140.1,140.03,21.0125]
[1641742871783,16.513132,140.1,140.03,21.0125]
[1641742871981,1.784,140.13,140.03,21.0125]
[1641742872381,0.25,140.12,140.03,21.0125]
[1641742872583,1.784,140.11,140.03,21.0125]
[1641742872984,0.25,140.1,140.03,21.0125]
[1641742873183,1.784,140.13,140.03,21.0125]
[1641742874385,0.25,140.12,140.03,21.0125]
[1641742875184,2.22110038,140.12,140.03,21.0125]
[1641742875786,1.97110038,140.11,140.03,21.0125]
[1641742875985,2.034,140.1,140.03,21.0125]
[1641742876992,1.97110038,140.11,140.03,21.0125]
[1641742877194,1.97110038,140.11,140.04,10.9618]
[1641742877624,50.58445406,140.14,140.04,10.9618]
[1641742877822,1.784,140.13,140.04,10.9618]
[1641742878321,1.784,140.14,140.04,12.74262586]
[1641742878522,1.97110038,140.15,140.04,12.74262586]
[1641742878523,1.97110038,140.15,140.04,21.45662586]
[1641742878923,31.91101223,140.17,140.04,21.45662586]
[1641742879127,0.25,140.16,140.05,1.784]
[1641742879323,1.784,140.15,140.07,10.7098]
[1641742879523,4.00510038,140.16,140.07,10.7098]
[1641742879923,3.75510038,140.16,140.07,10.7098]
[1641742880124,1.97110038,140.16,140.07,10.7098]
[1641742880524,3.75510038,140.17,140.07,10.7098]
[1641742880725,0.25,140.16,140.07,10.7098]
[1641742883525,3.75510038,140.17,140.08,0.25]
[1641742883725,1.97110038,140.16,140.11,10.707]